[Event "Early-Titled-Tuesday-Blitz-February-27-2024"]
[Site "Chess.com"]
[Date "2024.02.27"]
[Round "11"]
[White "agvania123"]
[Black "Austen48"]
[Result "1-0"]
[WhiteElo "2394"]
[BlackElo "2248"]
[TimeControl "180+1"]
[EndTime "10:06:38 PST"]
[Termination "agvania123 won on time"]

1. e4 {[%clk 0:03:00.9]} 1... c5 {[%clk 0:02:28.5]} 2. Nc3 {[%clk 0:02:55.3]}
2... Nc6 {[%clk 0:02:27.4]} 3. Bb5 {[%clk 0:02:55.3]} 3... g6 {[%clk 0:02:25.3]}
4. Bxc6 {[%clk 0:02:53.3]} 4... dxc6 {[%clk 0:02:24.9]} 5. f4 {[%clk 0:02:53.4]}
5... Bg7 {[%clk 0:02:24.7]} 6. Nf3 {[%clk 0:02:52.9]} 6... Nf6 {[%clk
0:02:17.8]} 7. d3 {[%clk 0:02:53.1]} 7... O-O {[%clk 0:02:17.7]} 8. O-O {[%clk
0:02:49.9]} 8... Ne8 {[%clk 0:02:12.2]} 9. Qe1 {[%clk 0:02:49.2]} 9... Nc7
{[%clk 0:02:11.6]} 10. Qh4 {[%clk 0:02:48.4]} 10... f6 {[%clk 0:01:49.7]} 11. g4
{[%clk 0:02:24.2]} 11... Ne6 {[%clk 0:01:48.5]} 12. f5 {[%clk 0:02:23]} 12...
Nd4 {[%clk 0:01:44.9]} 13. Nxd4 {[%clk 0:02:13.3]} 13... cxd4 {[%clk 0:01:35.3]}
14. Ne2 {[%clk 0:02:13]} 14... g5 {[%clk 0:01:34.7]} 15. Qg3 {[%clk 0:02:12.4]}
15... e6 {[%clk 0:01:28.3]} 16. h4 {[%clk 0:02:11.3]} 16... exf5 {[%clk
0:01:27.4]} 17. gxf5 {[%clk 0:02:09.3]} 17... h6 {[%clk 0:01:27.4]} 18. hxg5
{[%clk 0:02:08.8]} 18... hxg5 {[%clk 0:01:23.2]} 19. Kg2 {[%clk 0:01:56.4]}
19... Rf7 {[%clk 0:01:08.5]} 20. Rh1 {[%clk 0:01:55.1]} 20... c5 {[%clk
0:01:08.2]} 21. Qg4 {[%clk 0:01:52.5]} 21... Qd6 {[%clk 0:00:59.8]} 22. Bd2
{[%clk 0:01:41.5]} 22... Bd7 {[%clk 0:00:59]} 23. Rh3 {[%clk 0:01:36.3]} 23...
Kf8 {[%clk 0:00:58.5]} 24. Rah1 {[%clk 0:01:36.6]} 24... Ke7 {[%clk 0:00:55.2]}
25. Ng3 {[%clk 0:01:31.2]} 25... Bc6 {[%clk 0:00:44.7]} 26. Kf2 {[%clk
0:01:29.3]} 26... Bf8 {[%clk 0:00:35.3]} 27. Rh7 {[%clk 0:01:26.9]} 27... Be8
{[%clk 0:00:33.6]} 28. e5 {[%clk 0:01:22.4]} 28... Qxe5 {[%clk 0:00:25.9]} 29.
Re1 {[%clk 0:00:50.4]} 29... Qxe1+ {[%clk 0:00:24.1]} 30. Bxe1 {[%clk
0:00:41.3]} 30... Rxh7 {[%clk 0:00:24.3]} 31. Ne4 {[%clk 0:00:40.6]} 31... Kf7
{[%clk 0:00:19.4]} 32. Kg1 {[%clk 0:00:33.9]} 32... Be7 {[%clk 0:00:19]} 33. Bg3
{[%clk 0:00:33.2]} 33... Bc6 {[%clk 0:00:18.6]} 34. Nf2 {[%clk 0:00:23.1]} 34...
Rah8 {[%clk 0:00:18.2]} 35. Qe2 {[%clk 0:00:20.3]} 35... Rh5 {[%clk 0:00:16.5]}
36. Qe6+ {[%clk 0:00:16.8]} 36... Kf8 {[%clk 0:00:17]} 37. Bd6 {[%clk
0:00:16.8]} 37... R8h7 {[%clk 0:00:13.5]} 38. Qc8+ {[%clk 0:00:14.5]} 38... Kf7
{[%clk 0:00:12.6]} 39. Qe6+ {[%clk 0:00:14]} 39... Ke8 {[%clk 0:00:12]} 40. Bxe7
{[%clk 0:00:14.2]} 40... Rxe7 {[%clk 0:00:12]} 41. Qg8+ {[%clk 0:00:05.9]} 41...
Kd7 {[%clk 0:00:11.4]} 42. Kf1 {[%clk 0:00:05.9]} 42... Kc7 {[%clk 0:00:06.6]}
43. Qf8 {[%clk 0:00:05.5]} 43... Reh7 {[%clk 0:00:03.7]} 44. Qxf6 {[%clk
0:00:03.8]} 44... a6 {[%clk 0:00:04.4]} 45. Qg6 {[%clk 0:00:03.3]} 45... Rh2
{[%clk 0:00:04.6]} 46. f6 {[%clk 0:00:03.5]} 46... Bd7 {[%clk 0:00:03.7]} 47. f7
{[%clk 0:00:03.3]} 47... Rxf2+ {[%clk 0:00:03.1]} 48. Kxf2 {[%clk 0:00:02.7]}
48... Rh2+ {[%clk 0:00:02.5]} 49. Kg3 {[%clk 0:00:02.7]} 49... Rh3+ {[%clk
0:00:02]} 50. Kg2 {[%clk 0:00:02.4]} 50... Rh2+ {[%clk 0:00:02.2]} 51. Kxh2
{[%clk 0:00:02.7]} 1-0

[Event "Early-Titled-Tuesday-Blitz-February-27-2024"]
[Site "Chess.com"]
[Date "2024.02.27"]
[Round "11"]
[White "FARIZA2018"]
[Black "Savagelittlemole"]
[Result "0-1"]
[WhiteElo "2581"]
[BlackElo "2477"]
[TimeControl "180+1"]
[EndTime "10:06:41 PST"]
[Termination "Savagelittlemole won by checkmate"]

1. e4 {[%clk 0:03:00.9]} 1... c5 {[%clk 0:02:59.7]} 2. Nf3 {[%clk 0:03:01.1]}
2... d6 {[%clk 0:03:00.3]} 3. d4 {[%clk 0:03:01.4]} 3... cxd4 {[%clk 0:03:01.2]}
4. Nxd4 {[%clk 0:03:02]} 4... Nf6 {[%clk 0:03:01.9]} 5. Nc3 {[%clk 0:03:02.6]}
5... a6 {[%clk 0:03:02.6]} 6. Bg5 {[%clk 0:03:02.8]} 6... Nbd7 {[%clk
0:03:02.6]} 7. Qe2 {[%clk 0:03:02.3]} 7... h6 {[%clk 0:03:02.5]} 8. Bh4 {[%clk
0:03:01.5]} 8... e5 {[%clk 0:03:02.1]} 9. Nf5 {[%clk 0:03:00.3]} 9... g6 {[%clk
0:02:59.1]} 10. Ne3 {[%clk 0:02:59.3]} 10... Be7 {[%clk 0:02:58.9]} 11. f3
{[%clk 0:02:56.7]} 11... b5 {[%clk 0:02:59.2]} 12. Bf2 {[%clk 0:02:55.6]} 12...
Bb7 {[%clk 0:02:58.7]} 13. O-O-O {[%clk 0:02:55.3]} 13... Qa5 {[%clk 0:02:55.4]}
14. Kb1 {[%clk 0:02:55.3]} 14... Rc8 {[%clk 0:02:53]} 15. Ncd5 {[%clk
0:02:54.1]} 15... Nxd5 {[%clk 0:02:49.4]} 16. Nxd5 {[%clk 0:02:54.4]} 16... Bxd5
{[%clk 0:02:47.3]} 17. Rxd5 {[%clk 0:02:54.6]} 17... Nb6 {[%clk 0:02:45.7]} 18.
Bxb6 {[%clk 0:02:49.1]} 18... Qxb6 {[%clk 0:02:46.6]} 19. g4 {[%clk 0:02:43.9]}
19... Bh4 {[%clk 0:02:37.5]} 20. Bg2 {[%clk 0:02:31.4]} 20... O-O {[%clk
0:02:34.7]} 21. Rhd1 {[%clk 0:02:29.1]} 21... Rc6 {[%clk 0:02:33.7]} 22. Qd2
{[%clk 0:02:28.9]} 22... Bg5 {[%clk 0:02:29]} 23. Qd3 {[%clk 0:02:26.7]} 23...
Rfc8 {[%clk 0:02:20.3]} 24. Bf1 {[%clk 0:01:58.5]} 24... Rxc2 {[%clk 0:02:15.2]}
25. Qxc2 {[%clk 0:01:58.6]} 25... Rxc2 {[%clk 0:02:15.6]} 26. Kxc2 {[%clk
0:01:58.8]} 26... Qf2+ {[%clk 0:02:12.7]} 27. Kb1 {[%clk 0:01:58.9]} 27... Be7
{[%clk 0:02:05.7]} 28. R5d3 {[%clk 0:01:55.6]} 28... Qxh2 {[%clk 0:02:05.7]} 29.
Rc3 {[%clk 0:01:50.5]} 29... Qf2 {[%clk 0:01:57.2]} 30. a4 {[%clk 0:01:43.4]}
30... b4 {[%clk 0:01:47.6]} 31. Rb3 {[%clk 0:01:38.7]} 31... a5 {[%clk
0:01:46.2]} 32. Bc4 {[%clk 0:01:34.8]} 32... h5 {[%clk 0:01:43.4]} 33. gxh5
{[%clk 0:01:34.1]} 33... gxh5 {[%clk 0:01:44.3]} 34. Rbd3 {[%clk 0:01:32]} 34...
h4 {[%clk 0:01:39.5]} 35. R1d2 {[%clk 0:01:25.6]} 35... Qc5 {[%clk 0:01:35.8]}
36. b3 {[%clk 0:01:15.5]} 36... h3 {[%clk 0:01:32.9]} 37. Rd1 {[%clk 0:00:42.8]}
37... h2 {[%clk 0:01:27.3]} 38. Rh1 {[%clk 0:00:41.9]} 38... Qf2 {[%clk
0:01:22]} 39. Bd5 {[%clk 0:00:27.8]} 39... Bg5 {[%clk 0:01:17.3]} 40. Rdd1
{[%clk 0:00:26.7]} 40... Be3 {[%clk 0:01:09]} 41. Rhf1 {[%clk 0:00:22.8]} 41...
Qxf1 {[%clk 0:01:03.6]} 42. Rxf1 {[%clk 0:00:22.4]} 42... Bg1 {[%clk 0:01:04.2]}
43. f4 {[%clk 0:00:19.1]} 43... h1=Q {[%clk 0:00:59]} 44. fxe5 {[%clk
0:00:19.3]} 44... dxe5 {[%clk 0:00:56.4]} 45. Rxf7 {[%clk 0:00:19.4]} 45... Kh8
{[%clk 0:00:54.8]} 46. Kc2 {[%clk 0:00:15.3]} 46... Qg2+ {[%clk 0:00:52.7]} 47.
Kd3 {[%clk 0:00:15.5]} 47... Bc5 {[%clk 0:00:45.6]} 48. Kc4 {[%clk 0:00:14.7]}
48... Bd4 {[%clk 0:00:37.1]} 49. Kb5 {[%clk 0:00:14.4]} 49... Qc2 {[%clk
0:00:36.1]} 50. Rb7 {[%clk 0:00:07.4]} 50... Qc5+ {[%clk 0:00:33.4]} 51. Ka6
{[%clk 0:00:07.8]} 51... Be3 {[%clk 0:00:25.9]} 52. Rb8+ {[%clk 0:00:06.4]}
52... Kg7 {[%clk 0:00:25.4]} 53. Rb7+ {[%clk 0:00:06.6]} 53... Kh6 {[%clk
0:00:24.4]} 54. Rb5 {[%clk 0:00:01.7]} 54... Qa7# {[%clk 0:00:23.7]} 0-1

[Event "Early-Titled-Tuesday-Blitz-February-27-2024"]
[Site "Chess.com"]
[Date "2024.02.27"]
[Round "11"]
[White "FairChess_on_YouTube"]
[Black "TigrVShlyape"]
[Result "1/2-1/2"]
[WhiteElo "3093"]
[BlackElo "2903"]
[TimeControl "180+1"]
[EndTime "10:06:44 PST"]
[Termination "Game drawn by repetition"]

1. e4 {[%clk 0:03:00.9]} 1... c5 {[%clk 0:02:55.1]} 2. Nc3 {[%clk 0:02:58.5]}
2... e6 {[%clk 0:02:54.5]} 3. Nge2 {[%clk 0:02:58.1]} 3... a6 {[%clk 0:02:53.9]}
4. g3 {[%clk 0:02:54.1]} 4... b5 {[%clk 0:02:54.1]} 5. Bg2 {[%clk 0:02:54.4]}
5... Bb7 {[%clk 0:02:54.5]} 6. d4 {[%clk 0:02:50.9]} 6... cxd4 {[%clk
0:02:54.3]} 7. Nxd4 {[%clk 0:02:51.8]} 7... Nc6 {[%clk 0:02:53.9]} 8. O-O {[%clk
0:02:50.9]} 8... Nxd4 {[%clk 0:02:54]} 9. Qxd4 {[%clk 0:02:50.7]} 9... Rc8
{[%clk 0:02:54.6]} 10. Rd1 {[%clk 0:02:44.4]} 10... Ne7 {[%clk 0:02:53.6]} 11.
Qa7 {[%clk 0:02:22.3]} 11... Qc7 {[%clk 0:02:52.7]} 12. Bf4 {[%clk 0:02:19.4]}
12... Nc6 {[%clk 0:02:52]} 13. Qe3 {[%clk 0:02:12.5]} 13... Ne5 {[%clk
0:02:51.6]} 14. Nd5 {[%clk 0:02:00.5]} 14... exd5 {[%clk 0:02:38.5]} 15. exd5
{[%clk 0:02:01.4]} 15... d6 {[%clk 0:02:31.1]} 16. Bxe5 {[%clk 0:02:01.3]} 16...
dxe5 {[%clk 0:02:31.2]} 17. d6 {[%clk 0:02:01.7]} 17... Bxd6 {[%clk 0:02:30.1]}
18. Bxb7 {[%clk 0:02:01.6]} 18... Qxb7 {[%clk 0:02:29.8]} 19. Rxd6 {[%clk
0:02:01.5]} 19... O-O {[%clk 0:02:29.7]} 20. c3 {[%clk 0:01:56.6]} 20... f6
{[%clk 0:02:10.3]} 21. Rad1 {[%clk 0:01:54.7]} 21... Rc7 {[%clk 0:01:55.9]} 22.
a3 {[%clk 0:01:49.9]} 22... h6 {[%clk 0:01:37.8]} 23. h4 {[%clk 0:01:49.1]}
23... Re7 {[%clk 0:01:28.9]} 24. Rb6 {[%clk 0:01:23.6]} 24... Qa8 {[%clk
0:01:21.8]} 25. Rdd6 {[%clk 0:01:20.9]} 25... Ra7 {[%clk 0:01:21.4]} 26. h5
{[%clk 0:01:17.7]} 26... Kh8 {[%clk 0:01:06.7]} 27. Qc5 {[%clk 0:01:05]} 27...
Rc8 {[%clk 0:01:04.5]} 28. Rbc6 {[%clk 0:01:02.2]} 28... Re8 {[%clk 0:00:59.8]}
29. Qb6 {[%clk 0:00:48.4]} 29... e4 {[%clk 0:00:58.2]} 30. Qe3 {[%clk
0:00:39.3]} 30... a5 {[%clk 0:00:56.2]} 31. Re6 {[%clk 0:00:25]} 31... Rae7
{[%clk 0:00:55.5]} 32. Rxe7 {[%clk 0:00:25]} 32... Rxe7 {[%clk 0:00:55.6]} 33.
Qc5 {[%clk 0:00:25.6]} 33... Re8 {[%clk 0:00:51.2]} 34. Qxb5 {[%clk 0:00:24.9]}
34... e3 {[%clk 0:00:51.1]} 35. fxe3 {[%clk 0:00:24.7]} 35... Qd8 {[%clk
0:00:47.5]} 36. Rd6 {[%clk 0:00:18.7]} 36... Qe7 {[%clk 0:00:46]} 37. Qd3 {[%clk
0:00:16.4]} 37... Qe5 {[%clk 0:00:45.9]} 38. Kg2 {[%clk 0:00:15.9]} 38... a4
{[%clk 0:00:41.7]} 39. Rd8 {[%clk 0:00:14.7]} 39... Qxh5 {[%clk 0:00:40.2]} 40.
Rxe8+ {[%clk 0:00:10.6]} 40... Qxe8 {[%clk 0:00:39.6]} 41. c4 {[%clk 0:00:11.3]}
41... Qb8 {[%clk 0:00:38.3]} 42. Qc3 {[%clk 0:00:10.6]} 42... Qb7+ {[%clk
0:00:38.7]} 43. Kf2 {[%clk 0:00:10.6]} 43... h5 {[%clk 0:00:36.3]} 44. c5 {[%clk
0:00:10.9]} 44... Qc6 {[%clk 0:00:36.7]} 45. Qd4 {[%clk 0:00:10.9]} 45... Qb5
{[%clk 0:00:34.8]} 46. Qb4 {[%clk 0:00:10.5]} 46... Qc6 {[%clk 0:00:34.1]} 47.
e4 {[%clk 0:00:11.1]} 47... Kh7 {[%clk 0:00:31.2]} 48. Qc4 {[%clk 0:00:10.6]}
48... Kh6 {[%clk 0:00:27.5]} 49. Ke3 {[%clk 0:00:08]} 49... g5 {[%clk
0:00:26.9]} 50. Qd5 {[%clk 0:00:07.3]} 50... Qb5 {[%clk 0:00:26.5]} 51. c6
{[%clk 0:00:07.6]} 51... Qb6+ {[%clk 0:00:26.9]} 52. Kd3 {[%clk 0:00:07.3]}
52... h4 {[%clk 0:00:24.8]} 53. gxh4 {[%clk 0:00:06.3]} 53... gxh4 {[%clk
0:00:25.2]} 54. Qe6 {[%clk 0:00:05.7]} 54... Qxb2 {[%clk 0:00:21.5]} 55. c7
{[%clk 0:00:04.2]} 55... Qb1+ {[%clk 0:00:20.7]} 56. Ke3 {[%clk 0:00:04]} 56...
Qc1+ {[%clk 0:00:20.3]} 57. Kf3 {[%clk 0:00:04.4]} 57... Qxc7 {[%clk 0:00:20.3]}
58. Qxf6+ {[%clk 0:00:04.7]} 58... Kh5 {[%clk 0:00:20.5]} 59. Qf5+ {[%clk
0:00:04.9]} 59... Kh6 {[%clk 0:00:20.9]} 60. Qf6+ {[%clk 0:00:05.4]} 60... Kh5
{[%clk 0:00:21.3]} 61. Qf5+ {[%clk 0:00:03.6]} 61... Kh6 {[%clk 0:00:21.7]} 62.
Qf6+ {[%clk 0:00:04.1]} 1/2-1/2

[Event "Early-Titled-Tuesday-Blitz-February-27-2024"]
[Site "Chess.com"]
[Date "2024.02.27"]
[Round "11"]
[White "AlexTruskavetsky"]
[Black "ScofieldMichael01"]
[Result "0-1"]
[WhiteElo "2720"]
[BlackElo "2615"]
[TimeControl "180+1"]
[EndTime "10:06:49 PST"]
[Termination "ScofieldMichael01 won by resignation"]

1. d4 {[%clk 0:02:57.5]} 1... Nf6 {[%clk 0:02:59.5]} 2. c4 {[%clk 0:02:55.8]}
2... g6 {[%clk 0:02:59.3]} 3. Nc3 {[%clk 0:02:56]} 3... Bg7 {[%clk 0:03:00.2]}
4. e3 {[%clk 0:02:56.5]} 4... d6 {[%clk 0:03:00.9]} 5. e4 {[%clk 0:02:51.2]}
5... O-O {[%clk 0:03:01.8]} 6. f4 {[%clk 0:02:51.8]} 6... e5 {[%clk 0:02:56.7]}
7. fxe5 {[%clk 0:02:49.7]} 7... dxe5 {[%clk 0:02:56.3]} 8. d5 {[%clk 0:02:50.6]}
8... c6 {[%clk 0:02:54.2]} 9. Nf3 {[%clk 0:02:49.7]} 9... cxd5 {[%clk
0:02:54.5]} 10. cxd5 {[%clk 0:02:50.6]} 10... Qa5 {[%clk 0:02:49.5]} 11. Bd3
{[%clk 0:02:49.3]} 11... Nbd7 {[%clk 0:02:15.7]} 12. O-O {[%clk 0:02:48.5]}
12... Nc5 {[%clk 0:02:10.5]} 13. Be3 {[%clk 0:02:43.6]} 13... Ng4 {[%clk
0:02:08.7]} 14. Qd2 {[%clk 0:02:37.8]} 14... Bd7 {[%clk 0:02:00]} 15. Rab1
{[%clk 0:02:36.9]} 15... Nxd3 {[%clk 0:01:55.6]} 16. Qxd3 {[%clk 0:02:37.4]}
16... Nxe3 {[%clk 0:01:55.9]} 17. Qxe3 {[%clk 0:02:38.3]} 17... Rac8 {[%clk
0:01:55.5]} 18. Nd2 {[%clk 0:02:36.1]} 18... Qc5 {[%clk 0:01:48.1]} 19. Qxc5
{[%clk 0:02:35.2]} 19... Rxc5 {[%clk 0:01:49]} 20. Nb3 {[%clk 0:02:35.3]} 20...
Rc7 {[%clk 0:01:45.9]} 21. Rbd1 {[%clk 0:02:30.4]} 21... Rd8 {[%clk 0:01:25.2]}
22. d6 {[%clk 0:02:25.4]} 22... Rc6 {[%clk 0:01:25.3]} 23. Nd5 {[%clk
0:02:25.9]} 23... Rc2 {[%clk 0:00:59]} 24. Rf2 {[%clk 0:02:21.3]} 24... Rxf2
{[%clk 0:00:57.8]} 25. Kxf2 {[%clk 0:02:22.2]} 25... Bf8 {[%clk 0:00:56.1]} 26.
Nc5 {[%clk 0:02:18.4]} 26... Bc6 {[%clk 0:00:50.8]} 27. b4 {[%clk 0:01:49.8]}
27... Bxd6 {[%clk 0:00:50.8]} 28. Ke3 {[%clk 0:01:43.6]} 28... Kg7 {[%clk
0:00:51]} 29. Nd3 {[%clk 0:01:40]} 29... f5 {[%clk 0:00:47.2]} 30. Nf2 {[%clk
0:01:36.2]} 30... Bxb4 {[%clk 0:00:43.6]} 31. Nd3 {[%clk 0:01:34.4]} 31... Bd6
{[%clk 0:00:42.2]} 32. Nc3 {[%clk 0:01:33.1]} 32... Kf6 {[%clk 0:00:38.6]} 33.
g3 {[%clk 0:01:31.6]} 33... Ke6 {[%clk 0:00:36.9]} 34. Ke2 {[%clk 0:01:26.1]}
34... Ke7 {[%clk 0:00:30.6]} 35. Rb1 {[%clk 0:01:11.1]} 35... Bc7 {[%clk
0:00:23.3]} 36. Nb4 {[%clk 0:01:08.1]} 36... Bxe4 {[%clk 0:00:21.6]} 37. Nxe4
{[%clk 0:01:07.5]} 37... fxe4 {[%clk 0:00:22.5]} 38. Nc2 {[%clk 0:01:07.5]}
38... Bb6 {[%clk 0:00:22.5]} 39. a4 {[%clk 0:01:08.1]} 39... Rd7 {[%clk
0:00:18.2]} 40. Rb4 {[%clk 0:01:06.2]} 40... Rc7 {[%clk 0:00:17.9]} 41. Na3
{[%clk 0:00:59.4]} 41... Rc3 {[%clk 0:00:16.7]} 42. Nc4 {[%clk 0:00:56.1]} 42...
Rc2+ {[%clk 0:00:17]} 43. Kd1 {[%clk 0:00:55.9]} 43... Rxh2 {[%clk 0:00:17.2]}
44. a5 {[%clk 0:00:56.6]} 44... Bd4 {[%clk 0:00:15.2]} 45. Rxb7+ {[%clk
0:00:55.5]} 45... Ke6 {[%clk 0:00:15.7]} 46. Na3 {[%clk 0:00:53.4]} 46... e3
{[%clk 0:00:16]} 47. Rb3 {[%clk 0:00:45.5]} 47... e2+ {[%clk 0:00:16.3]} 48. Ke1
{[%clk 0:00:46]} 48... h5 {[%clk 0:00:16.1]} 49. Nc2 {[%clk 0:00:43.9]} 49...
Kd5 {[%clk 0:00:14.9]} 50. a6 {[%clk 0:00:29.8]} 50... Kc4 {[%clk 0:00:15]} 51.
Nxd4 {[%clk 0:00:18.4]} 51... exd4 {[%clk 0:00:14.2]} 52. Rb7 {[%clk 0:00:19.3]}
52... Kd3 {[%clk 0:00:14.5]} 53. Rb3+ {[%clk 0:00:16.8]} 53... Ke4 {[%clk
0:00:14.3]} 54. Rb7 {[%clk 0:00:14.2]} 54... d3 {[%clk 0:00:14.5]} 55. Kd2
{[%clk 0:00:14.9]} 55... Rh1 {[%clk 0:00:13.4]} 56. Re7+ {[%clk 0:00:15.5]}
56... Kf3 {[%clk 0:00:13.9]} 57. Rf7+ {[%clk 0:00:12]} 57... Kxg3 {[%clk
0:00:13.9]} 58. Re7 {[%clk 0:00:12.7]} 58... Rd1+ {[%clk 0:00:14]} 59. Kc3
{[%clk 0:00:13.3]} 59... e1=Q+ {[%clk 0:00:14.9]} 60. Rxe1 {[%clk 0:00:13.8]}
60... Rxe1 {[%clk 0:00:15.8]} 61. Kxd3 {[%clk 0:00:14.7]} 61... Re6 {[%clk
0:00:16.5]} 62. Kc4 {[%clk 0:00:15.2]} 62... Rxa6 {[%clk 0:00:17.4]} 63. Kb5
{[%clk 0:00:16.1]} 63... Rf6 {[%clk 0:00:18]} 64. Kc5 {[%clk 0:00:16.7]} 64...
g5 {[%clk 0:00:18.9]} 65. Kb5 {[%clk 0:00:17.6]} 65... g4 {[%clk 0:00:19.6]} 0-1

[Event "Early-Titled-Tuesday-Blitz-February-27-2024"]
[Site "Chess.com"]
[Date "2024.02.27"]
[Round "11"]
[White "Schachmalanders"]
[Black "NikitaShnadrygin"]
[Result "0-1"]
[WhiteElo "2458"]
[BlackElo "2610"]
[TimeControl "180+1"]
[EndTime "10:06:52 PST"]
[Termination "NikitaShnadrygin won by resignation"]

1. e4 {[%clk 0:03:00.9]} 1... c5 {[%clk 0:02:56]} 2. Nc3 {[%clk 0:03:00.4]} 2...
e6 {[%clk 0:02:55]} 3. g3 {[%clk 0:03:00.8]} 3... d5 {[%clk 0:02:54.9]} 4. exd5
{[%clk 0:03:00.9]} 4... exd5 {[%clk 0:02:55.8]} 5. Bg2 {[%clk 0:03:01.4]} 5...
d4 {[%clk 0:02:55.9]} 6. Nd5 {[%clk 0:03:01.8]} 6... Nc6 {[%clk 0:02:47.1]} 7.
d3 {[%clk 0:03:01.7]} 7... Bd6 {[%clk 0:02:42.4]} 8. Ne2 {[%clk 0:03:00.5]} 8...
Nge7 {[%clk 0:02:41.4]} 9. Nef4 {[%clk 0:02:56.5]} 9... O-O {[%clk 0:02:38.1]}
10. O-O {[%clk 0:02:55.7]} 10... Ne5 {[%clk 0:02:33.7]} 11. h3 {[%clk
0:02:50.7]} 11... Rb8 {[%clk 0:02:19.4]} 12. Re1 {[%clk 0:02:49.5]} 12... N7c6
{[%clk 0:02:11.3]} 13. Nh5 {[%clk 0:02:31.8]} 13... Ng6 {[%clk 0:01:55.3]} 14.
Bd2 {[%clk 0:02:23.5]} 14... Bd7 {[%clk 0:01:42.6]} 15. h4 {[%clk 0:02:10.4]}
15... Nce5 {[%clk 0:01:26.5]} 16. Nhf4 {[%clk 0:01:56.9]} 16... Bg4 {[%clk
0:01:25.4]} 17. f3 {[%clk 0:01:54.8]} 17... Bd7 {[%clk 0:01:21.9]} 18. h5 {[%clk
0:01:50.7]} 18... Nxf4 {[%clk 0:01:17.8]} 19. Bxf4 {[%clk 0:01:49.4]} 19... f6
{[%clk 0:01:11.6]} 20. h6 {[%clk 0:01:41.7]} 20... Rf7 {[%clk 0:00:50.1]} 21. c4
{[%clk 0:01:35.4]} 21... Bf5 {[%clk 0:00:36.4]} 22. Bxe5 {[%clk 0:01:28]} 22...
fxe5 {[%clk 0:00:36.7]} 23. Qd2 {[%clk 0:01:12.4]} 23... Kh8 {[%clk 0:00:32.8]}
24. Re2 {[%clk 0:01:08.4]} 24... Qg8 {[%clk 0:00:30.7]} 25. Rae1 {[%clk
0:01:05.6]} 25... gxh6 {[%clk 0:00:29.3]} 26. Qxh6 {[%clk 0:01:05.5]} 26... Qg6
{[%clk 0:00:19.6]} 27. Qxg6 {[%clk 0:00:59.4]} 27... Bxg6 {[%clk 0:00:20.2]} 28.
Rxe5 {[%clk 0:00:54.5]} 28... Bxe5 {[%clk 0:00:20.1]} 29. Rxe5 {[%clk
0:00:55.4]} 29... Bxd3 {[%clk 0:00:20.4]} 30. b3 {[%clk 0:00:55]} 30... b5
{[%clk 0:00:20.5]} 31. cxb5 {[%clk 0:00:51.1]} 31... c4 {[%clk 0:00:16.3]} 32.
bxc4 {[%clk 0:00:45.9]} 32... Bxc4 {[%clk 0:00:15.9]} 33. f4 {[%clk 0:00:45.9]}
33... Bxa2 {[%clk 0:00:13.3]} 34. Bf1 {[%clk 0:00:39.6]} 34... Rd8 {[%clk
0:00:11.3]} 35. Nb4 {[%clk 0:00:38.2]} 35... Bb3 {[%clk 0:00:09.5]} 36. Nc6
{[%clk 0:00:34]} 36... Rg8 {[%clk 0:00:09.7]} 37. Kf2 {[%clk 0:00:33.1]} 37...
Rd7 {[%clk 0:00:06.3]} 38. Bd3 {[%clk 0:00:20.4]} 38... Bf7 {[%clk 0:00:06.7]}
39. Re1 {[%clk 0:00:15.1]} 39... Rc8 {[%clk 0:00:06.8]} 40. Rh1 {[%clk
0:00:14.5]} 40... Bd5 {[%clk 0:00:05.4]} 41. Rh6 {[%clk 0:00:10.7]} 41... Bxc6
{[%clk 0:00:05.8]} 42. bxc6 {[%clk 0:00:11.6]} 42... Rdc7 {[%clk 0:00:06.2]} 43.
Kf3 {[%clk 0:00:09.5]} 43... Re8 {[%clk 0:00:05.4]} 44. Be4 {[%clk 0:00:08.6]}
44... Rd8 {[%clk 0:00:05.5]} 45. Bd3 {[%clk 0:00:08]} 45... Kg8 {[%clk
0:00:06.1]} 46. Ke4 {[%clk 0:00:07]} 46... Re7+ {[%clk 0:00:06.6]} 47. Kf3
{[%clk 0:00:06.9]} 47... Re3+ {[%clk 0:00:06.6]} 48. Kg4 {[%clk 0:00:07.5]}
48... Rxd3 {[%clk 0:00:07.5]} 49. c7 {[%clk 0:00:07.6]} 49... Rc8 {[%clk
0:00:08.1]} 50. Rc6 {[%clk 0:00:06.7]} 50... Rc3 {[%clk 0:00:08.7]} 51. Rd6
{[%clk 0:00:06.7]} 51... R3xc7 {[%clk 0:00:09.4]} 52. Rxd4 {[%clk 0:00:07.3]}
52... Rg7+ {[%clk 0:00:10.3]} 53. Kh3 {[%clk 0:00:07.3]} 53... Rf8 {[%clk
0:00:11.2]} 54. Rd3 {[%clk 0:00:07.4]} 54... a5 {[%clk 0:00:11.2]} 55. Ra3
{[%clk 0:00:08.3]} 55... Ra8 {[%clk 0:00:11.9]} 56. Rb3 {[%clk 0:00:08.5]} 56...
a4 {[%clk 0:00:12.6]} 57. Ra3 {[%clk 0:00:08.8]} 57... Rb7 {[%clk 0:00:12.9]}
58. f5 {[%clk 0:00:09.3]} 58... Rb3 {[%clk 0:00:13.5]} 59. Ra1 {[%clk
0:00:10.2]} 59... a3 {[%clk 0:00:14.2]} 60. f6 {[%clk 0:00:10.7]} 60... a2
{[%clk 0:00:14.4]} 61. Rf1 {[%clk 0:00:11.1]} 61... Rb1 {[%clk 0:00:15]} 62. f7+
{[%clk 0:00:12]} 62... Kf8 {[%clk 0:00:15.6]} 63. Rf4 {[%clk 0:00:11.9]} 63...
a1=Q {[%clk 0:00:15.9]} 0-1